bitfinex-derivatives/quotes_ETHF0:USTF0_20260123
["timestamp","ask_amount","ask_price","bid_price","bid_amount"]
[1769128107212,0.8757979,2954.1,2953.7,0.99157671]
[1769128107413,0.14397333,2954.3,2953.7,0.99157671]
[1769128107712,1.18567079,2954.2,2953.7,0.99157671]
[1769128107912,0.87574743,2954.1,2953.5,0.99157671]
[1769128108119,0.14397333,2954.3,2953.5,0.99157671]
[1769128108310,1.18564226,2954.2,2953.5,0.99157671]
[1769128108510,0.14397333,2954.3,2953.5,0.99157671]
[1769128108511,0.87572839,2954.1,2953.5,0.99157671]
[1769128108712,0.14397333,2954.3,2953.5,0.99157671]
[1769128109010,1.18560844,2954.2,2953.5,0.99157671]
[1769128109211,0.87570148,2954.1,2953.5,0.99157671]
[1769128109412,0.14397333,2954.3,2953.5,0.99157671]
[1769128109611,1.18555123,2954.2,2953.5,0.99157671]
[1769128109816,0.87565928,2954.1,2953.5,0.99157671]
[1769128110116,0.14397333,2954.3,2953.5,0.99157671]
[1769128110310,1.18554504,2954.2,2953.5,0.99157671]
[1769128110514,0.87565928,2954.1,2953.5,0.99157671]
[1769128110715,0.14397333,2954.3,2953.5,0.99157671]
[1769128110916,0.87564196,2954.2,2953.5,0.99157671]
[1769128111115,0.87564196,2954.1,2953.5,0.99157671]
[1769128111418,0.14397333,2954.3,2953.5,0.99157671]
[1769128111619,0.87560695,2954.2,2953.5,0.99157671]
[1769128111818,0.87560695,2954.1,2953.5,0.99157671]
[1769128112019,0.14397333,2954.3,2953.5,0.99157671]
[1769128112220,0.87560695,2954.2,2953.5,0.99157671]
[1769128112422,0.87560695,2954.1,2953.5,0.99157671]
[1769128112621,0.14397333,2954.3,2953.5,0.99157671]
[1769128112922,0.87560391,2954.2,2953.5,0.99157671]
[1769128113118,0.87560391,2954.1,2953.5,0.99157671]
[1769128113319,0.14397333,2954.3,2953.5,0.99157671]
[1769128113521,0.87560797,2954.2,2953.5,0.99157671]
[1769128113720,0.87560797,2954.1,2953.5,0.99157671]
[1769128113920,0.14397333,2954.3,2953.5,0.99157671]
[1769128114127,1.18548895,2954.2,2953.5,0.99157671]
[1769128114321,0.87560797,2954.1,2953.5,0.99157671]
[1769128114615,0.14397333,2954.3,2953.5,0.99157671]
[1769128114820,1.18549792,2954.2,2953.5,0.99157671]
[1769128115117,0.87561727,2954.1,2953.5,0.99157671]
[1769128115319,0.14397333,2954.3,2953.5,0.99157671]
[1769128115515,1.18551726,2954.2,2953.5,0.99157671]
[1769128115723,0.87563448,2954.1,2953.5,0.99157671]
[1769128115925,0.14397333,2954.3,2953.5,0.99157671]
[1769128116127,1.18551633,2954.2,2953.5,0.99157671]
[1769128116325,0.87563382,2954.1,2953.5,0.99157671]
[1769128116527,0.14397333,2954.3,2953.5,0.99157671]
[1769128116824,1.18554647,2954.2,2953.5,0.99157671]
[1769128117026,0.87565863,2954.1,2953.5,0.99157671]
[1769128117227,0.87565863,2954.2,2953.5,0.99157671]
[1769128120626,0.87565863,2954.2,2953.7,0.99157671]
[1769128120826,0.14098376,2954.4,2953.7,0.99157671]
[1769128121127,1.18619,2954.3,2953.7,0.99157671]
[1769128121328,0.87629798,2954.2,2953.8,0.00507546]
[1769128121524,0.14098376,2954.3,2953.8,0.00507546]
[1769128121728,1.18624703,2954.2,2953.8,0.00507546]
[1769128121927,0.87634051,2954.1,2953.8,0.00507546]
[1769128122127,0.14098376,2954.3,2953.8,0.00507546]
[1769128122328,1.18626126,2954.2,2953.8,0.00507546]
[1769128122527,0.14098376,2954.3,2953.8,0.00507546]
[1769128122727,1.18628656,2954.2,2953.8,0.00507546]
[1769128123028,0.87637079,2954.1,2953.8,0.00507546]
[1769128123230,0.14098376,2954.3,2953.8,0.00507546]
[1769128123424,0.30993289,2954.2,2953.8,0.00507546]
[1769128123623,0.14098376,2954.3,2953.8,0.00507546]
[1769128123823,1.18634404,2954.2,2953.8,0.00507546]
[1769128124124,0.14098376,2954.3,2953.8,0.00507546]
[1769128124327,0.14098376,2954.7,2953.9,0.99157671]
[1769128125332,0.14098376,2954.7,2954.1,0.99157671]
[1769128125718,0.00386558,2954.8,2954.3,0.99157671]
[1769128127226,0.99157671,2955.6,2954.3,0.99157671]
[1769128127423,1.16090671,2955.8,2954.5,0.99157671]
[1769128127825,0.14098376,2955.5,2954.5,0.99157671]
[1769128128231,0.14366805,2955.5,2954.5,0.99157671]
[1769128128934,0.14366805,2955.5,2954.3,0.99157671]
[1769128129234,0.14098376,2955.3,2954.1,0.99157671]
[1769128132635,0.99157671,2955.4,2953.8,0.00507546]
[1769128132636,1.13256047,2954.8,2953.8,0.00507546]
[1769128134348,1.13256047,2954.6,2953.8,0.00507546]
[1769128134542,0.14098376,2954.5,2953.8,0.00507546]
[1769128135650,1.13256047,2954.4,2953.1,1.14475817]
[1769128135843,0.14098376,2954.3,2953.3,0.99157671]
[1769128136751,0.00507546,2954.4,2953.3,0.99157671]
[1769128136951,0.87081573,2954.3,2953.3,0.99157671]
[1769128137151,0.00507546,2954.4,2953.3,0.99157671]
[1769128137349,0.87081556,2954.3,2953.3,0.99157671]
[1769128137550,0.00507546,2954.4,2953.3,0.99157671]
[1769128137745,0.87081771,2954.3,2953.3,0.99157671]
[1769128137949,0.00507546,2954.4,2953.3,0.99157671]
[1769128138149,0.87081771,2954.3,2953.3,0.99157671]
[1769128138350,0.00507546,2954.4,2953.3,0.99157671]
[1769128138650,0.8708198,2954.3,2953.3,0.99157671]
[1769128138852,0.00507546,2954.4,2953.3,0.99157671]
[1769128139046,0.8708198,2954.3,2953.3,0.99157671]
[1769128139250,0.00507546,2954.4,2953.3,0.99157671]
[1769128139455,0.87082196,2954.3,2953.3,0.99157671]
[1769128139657,0.00507546,2954.4,2953.3,0.99157671]
[1769128139950,0.87082196,2954.3,2953.3,0.99157671]
[1769128140151,0.00507546,2954.4,2953.3,0.99157671]
[1769128140351,0.87082196,2954.3,2953.3,0.99157671]
[1769128140551,0.00507546,2954.4,2953.3,0.99157671]
[1769128140754,0.87080144,2954.3,2953.3,0.99157671]
[1769128140956,0.00507546,2954.4,2953.3,0.99157671]
[1769128141157,0.87080144,2954.3,2953.3,0.99157671]
[1769128141349,0.00507546,2954.4,2953.3,0.99157671]
[1769128141647,0.87080374,2954.3,2953.3,0.99157671]
[1769128141846,0.00507546,2954.4,2953.3,0.99157671]
[1769128142048,0.87080374,2954.3,2953.3,0.99157671]
[1769128142254,0.00507546,2954.4,2953.3,0.99157671]
[1769128142454,0.87080605,2954.3,2953.3,0.99157671]
[1769128142754,0.00507546,2954.4,2953.3,0.99157671]
[1769128142958,0.87080605,2954.3,2953.3,0.99157671]
[1769128143148,0.00507546,2954.4,2953.3,0.99157671]
[1769128143345,0.87080605,2954.3,2953.3,0.99157671]
[1769128143556,0.00507546,2954.4,2953.3,0.99157671]
[1769128143754,0.87080832,2954.3,2953.3,0.99157671]
[1769128143955,0.00507546,2954.4,2953.3,0.99157671]
[1769128144156,0.87080832,2954.3,2953.3,0.99157671]
[1769128144357,0.00507546,2954.4,2953.3,0.99157671]
[1769128144549,0.87081079,2954.3,2953.3,0.99157671]
[1769128144753,0.00507546,2954.4,2953.3,0.99157671]
[1769128144954,0.87081079,2954.3,2953.3,0.99157671]
[1769128145154,0.00507546,2954.4,2953.3,0.99157671]
[1769128145455,0.87081079,2954.3,2953.3,0.99157671]
[1769128145755,0.00507546,2954.4,2953.3,0.99157671]
[1769128145953,0.87081327,2954.3,2953.3,0.99157671]
[1769128146154,0.00507546,2954.4,2953.3,0.99157671]
[1769128146361,0.87081327,2954.3,2953.3,0.99157671]
[1769128146561,0.00507546,2954.4,2953.3,0.99157671]
[1769128146858,0.87081602,2954.3,2953.3,0.99157671]
[1769128147158,0.00507546,2954.4,2953.3,0.99157671]
[1769128147354,0.87081604,2954.3,2953.3,0.99157671]
[1769128147555,0.00507546,2954.4,2953.3,0.99157671]
[1769128147759,0.87081905,2954.3,2953.3,0.99157671]
[1769128147953,0.00507546,2954.4,2953.3,0.99157671]
[1769128148153,0.87081902,2954.3,2953.3,0.99157671]
[1769128148358,0.00507546,2954.4,2953.3,0.99157671]
[1769128148561,0.87082164,2954.3,2953.3,0.99157671]
[1769128148758,0.00507546,2954.4,2953.3,0.99157671]
[1769128149058,0.87081993,2954.3,2953.3,0.99157671]
[1769128149355,0.00507546,2954.4,2953.3,0.99157671]
[1769128149555,0.87003211,2954.3,2953.3,0.99157671]
[1769128149757,0.00507546,2954.4,2953.3,0.99157671]
[1769128149956,0.87004175,2954.3,2953.3,0.99157671]
[1769128150155,0.00507546,2954.4,2953.3,0.99157671]
[1769128150357,0.87003561,2954.3,2953.3,0.99157671]
[1769128150556,0.00507546,2954.4,2953.3,0.99157671]
[1769128150757,0.87003804,2954.3,2953.3,0.99157671]
[1769128150956,0.00507546,2954.4,2953.1,0.15318146]
[1769128151154,0.87003454,2954.3,2953.1,0.15318146]
[1769128151355,0.00507546,2954.4,2953.1,0.15318146]
[1769128151561,0.87002041,2954.3,2953.1,0.15318146]
[1769128151763,0.00507546,2954.4,2953.1,0.15318146]
[1769128151955,0.87002041,2954.3,2953.1,0.15318146]
[1769128152255,0.00507546,2954.4,2953.1,0.15318146]
[1769128152455,0.8699888,2954.3,2953.1,0.15318146]
[1769128152754,0.00507546,2954.4,2953.1,0.15318146]
[1769128152955,0.87001158,2954.3,2953.1,0.15318146]
[1769128153157,0.00507546,2954.4,2953.1,0.15318146]
[1769128153356,0.87001158,2954.3,2953.1,0.15318146]
[1769128153656,0.00507546,2954.4,2953.1,0.15318146]
[1769128153857,0.8699988,2954.3,2953.1,0.15318146]
[1769128154063,0.00507546,2954.4,2953.1,0.15318146]
[1769128154262,0.8699988,2954.3,2953.1,0.15318146]
[1769128154463,0.00507546,2954.4,2953.1,0.15318146]
[1769128154664,0.86997719,2954.3,2953.1,0.15318146]
[1769128154962,0.00507546,2954.4,2953.1,0.15318146]
[1769128155261,0.86997707,2954.3,2953.1,0.15318146]
[1769128155461,0.00507546,2954.4,2953.1,0.15318146]
[1769128155661,0.8699642,2954.3,2953.1,0.15318146]
[1769128155862,0.00507546,2954.4,2953.1,0.15318146]
[1769128156055,0.8699642,2954.3,2953.1,0.15318146]
[1769128156259,0.00507546,2954.4,2953.1,0.15318146]
[1769128156458,0.86997169,2954.3,2953.1,0.15318146]
[1769128156657,0.00507546,2954.4,2953.1,0.15318146]
[1769128156861,0.86997169,2954.3,2953.1,0.15318146]
[1769128157061,0.00507546,2954.4,2953.1,0.15318146]
[1769128157262,0.86997169,2954.3,2953.1,0.15318146]
[1769128157469,0.00507546,2954.4,2953.1,0.15318146]
[1769128157671,0.87002524,2954.3,2953.1,0.15318146]
[1769128157872,0.00507546,2954.4,2953.1,0.15318146]
[1769128158171,0.87002524,2954.3,2953.1,0.15318146]
[1769128158371,0.00507546,2954.4,2953.1,0.15318146]
[1769128158572,0.8702081,2954.3,2953.1,0.15318146]
[1769128158872,0.00507546,2954.4,2953.1,0.15318146]
[1769128159073,0.8702081,2954.3,2953.1,0.15318146]
[1769128159274,0.00507546,2954.4,2953.1,0.15318146]
[1769128159570,1.1775442,2954.3,2953.1,0.15318146]
[1769128159779,0.00507546,2954.4,2953.1,0.15318146]
[1769128159969,1.17754665,2954.3,2953.1,0.15318146]
[1769128160167,0.00507546,2954.4,2953.1,0.15318146]
[1769128160473,1.1776405,2954.3,2953.1,0.15318146]
[1769128160674,0.87070207,2954.2,2953.1,0.15318146]
[1769128160866,0.00507546,2954.4,2953.1,0.15318146]
[1769128161069,1.17790952,2954.3,2953.1,0.15318146]
[1769128161275,0.87070032,2954.2,2953.1,0.15318146]
[1769128161468,0.00507546,2954.4,2953.1,0.15318146]
[1769128161768,0.00507546,2954.4,2953.1,0.00304482]
[1769128161769,1.31682504,2954.3,2953.1,0.00304482]
[1769128162074,1.17838229,2954.2,2953.1,0.00304482]
[1769128162274,1.17856537,2954.1,2953.1,0.00304482]
[1769128162573,0.13844275,2954.3,2953.1,0.00304482]
[1769128162770,1.17909171,2954.2,2953.1,0.00304482]
[1769128162966,1.17909171,2954.1,2953.1,0.00304482]
[1769128163165,0.13844275,2954.3,2953.1,0.00304482]
[1769128163470,1.17920752,2954.2,2953.1,0.00304482]
[1769128163671,1.17920752,2954.1,2953.1,0.00304482]
[1769128163872,0.8715779,2954.0,2953.1,0.00304482]
[1769128164173,0.13844275,2954.3,2953.1,0.00304482]
[1769128164369,1.1797321,2954.2,2953.1,0.00304482]
[1769128164569,1.1797321,2954.1,2953.1,0.00304482]
[1769128164873,1.1797321,2954.0,2953.1,0.00304482]
[1769128165074,0.13844275,2954.3,2953.1,0.00304482]
[1769128165273,1.18032918,2954.2,2953.1,0.00304482]
[1769128165473,1.18032918,2954.1,2953.1,0.00304482]
[1769128165676,1.18032918,2954.0,2953.1,0.00304482]
[1769128165873,1.18032511,2953.9,2953.1,0.00304482]
[1769128166075,0.13844275,2954.3,2953.1,0.00304482]
[1769128166374,1.31907491,2954.2,2953.1,0.00304482]
[1769128166573,1.18063216,2954.1,2953.1,0.00304482]
[1769128166769,1.18063216,2954.0,2953.1,0.00304482]
[1769128166972,1.18063216,2953.9,2953.1,0.00304482]
[1769128167172,0.13844275,2954.2,2953.1,0.00304482]
[1769128167377,1.18045958,2954.1,2953.1,0.00304482]
[1769128167571,1.18045958,2954.0,2953.1,0.00304482]
[1769128167766,1.18045958,2953.9,2953.1,0.00304482]
[1769128167972,0.87259539,2953.8,2953.1,0.00304482]
[1769128168173,0.13844275,2954.2,2953.1,0.00304482]
[1769128168470,1.31880075,2954.1,2953.1,0.00304482]
[1769128168672,1.180358,2954.0,2953.1,0.00304482]
[1769128168872,0.00507546,2954.4,2952.7,2.43189022]
[1769128168873,1.31880075,2953.9,2952.7,2.43189022]
[1769128169072,1.31880075,2953.9,2952.4,7.53164274]
[1769128169073,1.180358,2953.8,2952.4,7.53164274]
[1769128169274,1.180358,2953.7,2952.4,5.09975252]
[1769128169476,1.180358,2953.6,2952.4,5.09975252]
[1769128169678,0.87252756,2953.5,2952.4,5.09975252]
[1769128169877,0.13844275,2953.9,2952.4,5.10217747]
[1769128170079,1.17964069,2953.8,2952.5,0.14075252]
[1769128170278,1.17964069,2953.7,2952.5,0.14075252]
[1769128170475,0.8719682,2953.6,2952.5,0.14075252]
[1769128170675,0.13844275,2953.9,2952.5,0.14075252]
[1769128170981,1.17929979,2953.8,2952.5,0.14075252]
[1769128171180,1.17929979,2953.7,2952.5,0.14075252]
[1769128171380,0.13844275,2953.9,2952.5,0.14075252]
[1769128171589,1.17905413,2953.8,2952.5,0.14075252]
[1769128171882,1.17905413,2953.7,2952.5,0.14075252]
[1769128172081,0.13844275,2953.9,2952.5,0.14075252]
[1769128172280,1.17905421,2953.8,2952.5,0.14075252]
[1769128172475,1.17905421,2953.7,2952.5,0.14075252]
[1769128172674,0.13844275,2953.9,2952.5,0.14075252]
[1769128172878,1.17886608,2953.8,2952.5,0.14075252]
[1769128173085,1.17886608,2953.7,2952.5,0.14075252]
[1769128173284,0.13844275,2953.9,2952.5,0.14075252]
[1769128173484,1.17871123,2953.8,2952.5,0.14075252]
[1769128173781,0.87128313,2953.7,2952.5,0.14075252]
[1769128173986,0.13844275,2953.9,2952.5,0.14075252]
[1769128174283,1.17871149,2953.8,2952.5,0.14075252]
[1769128174479,0.13844275,2953.9,2952.5,0.14075252]
[1769128174480,0.87128331,2953.7,2952.5,0.14075252]
[1769128174685,0.13844275,2953.9,2952.5,0.14075252]
[1769128174886,1.17858183,2953.8,2952.5,0.14075252]
[1769128175088,0.87118717,2953.7,2952.5,0.14075252]
[1769128175387,0.13844275,2953.9,2952.5,0.14075252]
[1769128175578,1.17847418,2953.8,2952.5,0.14075252]
[1769128175778,0.87110758,2953.7,2952.5,0.14075252]
[1769128175978,0.13844275,2953.9,2952.5,0.14075252]
[1769128176187,1.17847393,2953.8,2952.5,0.14075252]
[1769128176383,1.01348783,2953.7,2952.4,0.00242495]
[1769128176588,1.01345906,2953.6,2952.4,0.00242495]
[1769128176887,0.14238043,2953.6,2952.4,0.00242495]
[1769128182397,0.14238043,2953.6,2952.4,6.34042495]
[1769128182699,0.14238043,2953.6,2952.4,0.00242495]
[1769128182893,0.14238043,2953.6,2952.4,6.34142495]
[1769128188296,0.14238043,2953.6,2952.4,0.00242495]
[1769128188602,0.87063515,2953.5,2952.4,6.36442495]
[1769128188805,0.14238043,2953.6,2952.4,6.36442495]
[1769128189003,0.87064083,2953.5,2952.4,6.36442495]
[1769128189204,0.14238043,2953.6,2952.4,0.00242495]
[1769128189405,1.32043426,2953.5,2952.4,0.00242495]
[1769128189700,1.17807156,2953.4,2952.4,0.00242495]
[1769128190002,0.00261103,2953.4,2952.4,0.00242495]
[1769128196408,0.8713666,2953.3,2952.4,0.00242495]
[1769128196605,0.00261103,2953.4,2952.4,0.00242495]
[1769128196810,0.8713666,2953.3,2952.4,0.00242495]
[1769128197110,0.00261103,2953.4,2952.4,0.00242495]
[1769128197409,0.8713666,2953.3,2952.4,0.00242495]
[1769128197610,0.00261103,2953.4,2952.4,0.00242495]
[1769128197805,0.8715361,2953.3,2952.4,0.00242495]
[1769128198006,0.00261103,2953.4,2952.4,0.00242495]
[1769128198308,0.8715361,2953.3,2952.4,0.00242495]
[1769128198510,0.00261103,2953.4,2952.4,0.00242495]
[1769128198707,0.8717062,2953.3,2952.4,0.00242495]
[1769128199006,0.00261103,2953.4,2952.4,0.00242495]
[1769128199209,0.8717062,2953.3,2952.4,0.00242495]
[1769128199504,0.14499146,2953.4,2952.4,0.00242495]
[1769128199709,1.17938304,2953.3,2952.4,0.00242495]
[1769128199912,0.87168601,2953.2,2952.4,0.00242495]
[1769128200208,0.14499146,2953.4,2952.4,0.00242495]
[1769128200409,1.17945788,2953.3,2952.4,0.00242495]
[1769128200609,0.87173996,2953.2,2952.4,0.00242495]
[1769128200808,0.14238043,2953.0,2951.7,6.5329078]
[1769128201005,1.17952369,2952.9,2951.7,0.1449078]
[1769128201209,0.00507546,2952.6,2951.7,0.1449078]
[1769128201705,0.00507546,2952.6,2951.6,6.39]
[1769128201905,0.00507546,2952.6,2951.6,6.39313912]
[1769128203211,0.00507546,2952.6,2951.8,0.00507546]
[1769128205715,0.15268862,2952.6,2951.8,0.00507546]
[1769128206208,0.30734658,2952.5,2951.8,0.00507546]
[1769128206412,0.15268862,2952.6,2951.8,0.00507546]
[1769128208319,0.00507546,2952.6,2951.8,0.00507546]
[1769128209911,0.15268862,2952.6,2951.8,0.00507546]
[1769128210110,1.32590939,2952.5,2951.6,0.00313912]
[1769128210416,0.30704956,2952.4,2951.6,0.00313912]
[1769128211915,1.1408576,2952.3,2951.0,0.99324444]
[1769128212224,0.99324444,2952.1,2951.0,0.99324444]
[1769128212414,1.1408576,2952.3,2951.0,0.99324444]
[1769128212611,1.1408576,2952.1,2950.8,0.99324444]
[1769128212817,1.1408576,2952.1,2950.8,0.99563913]
[1769128213209,0.99324444,2951.7,2950.8,0.00239469]
[1769128213416,0.14761316,2951.7,2950.8,0.00239469]
[1769128215119,0.14761316,2951.7,2950.6,0.99324444]
[1769128215421,0.99324444,2950.9,2949.7,1.14455493]
[1769128215633,1.1408576,2951.1,2949.7,1.14455493]
[1769128216117,0.00508423,2950.7,2949.9,0.99324444]
[1769128216319,0.00508423,2950.7,2949.7,0.15131049]
[1769128216320,0.99832867,2950.7,2949.7,0.00257941]
[1769128217026,0.00508423,2950.7,2949.7,0.99582385]
[1769128217723,0.00508423,2950.7,2949.9,0.99324444]
[1769128218725,0.00508423,2950.7,2949.7,0.99582385]
[1769128219026,0.00508423,2950.7,2949.7,0.00257941]
[1769128219231,0.14761316,2952.6,2950.7,0.02571304]
[1769128219416,0.14761316,2952.6,2950.4,1.884]
[1769128219417,0.14761316,2952.4,2950.4,1.884]
[1769128219718,0.14761316,2952.3,2951.3,0.99324444]
[1769128220429,0.15269739,2952.1,2951.3,0.99324444]
[1769128221824,0.15269739,2952.1,2951.5,0.99324444]
[1769128222022,0.00283177,2952.3,2952.0,0.99324444]
[1769128222329,0.16949,2952.9,2952.0,0.00259349]
[1769128222530,0.8666428,2952.8,2952.0,0.00259349]
[1769128222724,0.16949,2952.9,2952.0,0.00259349]
[1769128222922,6.86661587,2952.8,2952.0,0.00259349]
[1769128223133,6.00421991,2952.8,2952.0,0.00259349]
[1769128224035,0.14761316,2952.7,2952.0,0.00259349]
[1769128225734,0.14761316,2952.7,2952.0,0.99583793]
[1769128226828,0.14761316,2952.7,2952.0,0.00259349]
[1769128228536,0.14761316,2952.7,2951.4,0.99832867]
[1769128229335,0.14761316,2952.5,2951.4,0.99832867]
[1769128229540,0.14761316,2952.5,2951.6,0.99324444]
[1769128231140,0.14761316,2952.5,2951.8,0.99324444]
[1769128232036,0.86878309,2952.4,2951.8,0.99324444]
[1769128232234,0.86878309,2952.3,2951.8,0.99324444]
[1769128232434,0.14761316,2952.5,2951.8,0.99324444]
[1769128232635,0.8689269,2952.4,2951.8,0.99324444]
[1769128232836,0.8689269,2952.3,2951.8,0.99324444]
[1769128233037,0.14761316,2952.5,2951.8,0.99324444]
[1769128233239,0.86890705,2952.4,2951.8,0.99324444]
[1769128233439,0.86890705,2952.3,2951.8,0.99324444]
[1769128233642,0.14761316,2952.5,2951.8,0.99324444]
[1769128233840,0.86891525,2952.4,2951.8,0.99324444]
[1769128234040,0.86891525,2952.3,2951.8,0.99324444]
[1769128234235,0.14761316,2952.5,2951.8,0.99324444]
[1769128234437,0.86902011,2952.4,2951.8,0.99324444]
[1769128234634,0.86902011,2952.3,2951.8,0.99324444]
[1769128234839,0.14761316,2952.5,2951.8,0.99324444]
[1769128235041,0.86901711,2952.4,2951.8,0.99324444]
[1769128235242,0.86901711,2952.3,2951.8,0.99324444]
[1769128235444,0.14625609,2952.1,2951.4,0.00779537]
[1769128235744,0.86901711,2952.0,2951.4,0.00779537]
[1769128240447,1.13950053,2951.7,2950.4,0.99324444]
[1769128240649,1.0152732,2951.6,2950.4,0.99324444]
[1769128240846,0.14625609,2951.6,2950.4,1.98648888]
[1769128241044,0.86932199,2951.5,2950.4,1.98648888]
[1769128241249,0.14625609,2951.6,2950.4,1.98648888]
[1769128241444,0.86932479,2951.5,2950.4,1.9895827]
[1769128241644,0.14625609,2951.6,2950.4,1.9895827]
[1769128241950,0.14625609,2951.5,2950.4,0.99633826]
[1769128242949,1.13950053,2951.5,2950.4,0.00309382]
[1769128243150,0.14625609,2951.4,2950.4,0.00309382]
[1769128243849,0.14625609,2951.4,2950.4,0.99633826]
[1769128245554,0.14625609,2951.4,2950.4,0.00309382]
[1769128247952,0.14625609,2951.4,2950.4,0.99633826]
[1769128248252,0.86983787,2951.3,2950.6,0.99324444]
[1769128248454,0.14625609,2951.8,2950.8,0.99324444]
[1769128248646,1.17648539,2951.7,2950.8,0.99324444]
[1769128248848,1.13950053,2951.5,2950.4,0.00309382]
[1769128249145,1.01610665,2951.4,2950.4,0.00309382]
[1769128249446,0.86995354,2951.3,2950.4,0.00309382]
[1769128249746,0.14625609,2951.4,2950.4,0.99633826]
[1769128249945,0.869943,2951.3,2950.4,0.99633826]
[1769128250157,0.14625609,2951.4,2950.4,0.00309382]
[1769128251551,0.14625609,2951.2,2950.4,0.00309382]
[1769128254152,0.14625609,2951.6,2950.5,2.00554484]
[1769128254353,1.17579201,2951.5,2950.5,1.0123004]
[1769128254556,0.86933531,2951.4,2950.8,1.0123004]
[1769128254850,0.14625609,2951.6,2950.8,1.0123004]
[1769128255053,0.86931474,2951.5,2950.8,1.0123004]
[1769128255255,0.86931474,2951.4,2950.8,1.0123004]
[1769128255454,0.14625609,2951.6,2950.8,1.0123004]
[1769128255655,0.8693311,2951.5,2950.8,1.0123004]
[1769128255951,0.14625609,2951.6,2950.8,1.0123004]
[1769128256157,0.15134032,2952.0,2951.1,1.0123004]
[1769128256357,1.17592186,2951.9,2951.1,1.0123004]
[1769128256558,0.86943512,2951.8,2950.8,1.0123004]
[1769128256859,0.86943512,2951.7,2950.8,1.0123004]
[1769128257061,0.15134032,2952.0,2950.8,1.0123004]
[1769128257258,1.17607428,2951.9,2950.8,1.0123004]
[1769128257458,1.17607428,2951.8,2950.8,1.0123004]
[1769128257660,0.86954775,2951.7,2950.8,1.0123004]
[1769128257855,0.15134032,2952.0,2950.8,1.0123004]
[1769128258056,1.17624189,2951.9,2950.8,1.0123004]
[1769128258255,1.17624189,2951.8,2950.8,1.0123004]
[1769128258458,0.86967204,2951.7,2950.8,1.0123004]
[1769128258664,0.15134032,2952.0,2950.8,2.00554484]
[1769128258865,1.32268498,2951.9,2950.8,2.00554484]
[1769128259163,1.17642889,2951.8,2950.9,0.99324444]
[1769128259364,0.86981027,2951.7,2950.9,0.99324444]
[1769128259563,0.14625609,2951.9,2951.0,0.99324444]
[1769128259770,1.17661162,2951.8,2950.9,0.99324444]
[1769128259970,0.86994623,2951.7,2950.9,0.99324444]
[1769128260170,0.14625609,2951.9,2950.9,0.99324444]
[1769128260370,1.17671852,2951.8,2950.9,0.99324444]
[1769128260568,0.87005128,2951.7,2950.9,0.99324444]
[1769128260769,0.14625609,2951.9,2950.9,0.99324444]
[1769128261064,1.17667361,2951.8,2950.9,0.99324444]
[1769128261269,0.86998984,2951.7,2951.0,0.99324444]
[1769128261472,0.14625609,2951.9,2950.9,0.99324444]
[1769128261672,1.17693445,2951.8,2950.9,0.99324444]
[1769128261872,0.87018824,2951.7,2951.0,0.99324444]
[1769128262171,0.87018721,2951.6,2950.9,0.99324444]
[1769128262374,0.14625609,2951.9,2950.9,0.99324444]
[1769128262573,0.14625609,2951.9,2950.8,1.0123004]
[1769128262574,1.17722337,2951.8,2951.0,0.99324444]
[1769128262775,0.87039851,2951.7,2950.9,0.99324444]
[1769128262975,0.87039851,2951.6,2950.9,0.99324444]
[1769128263176,0.14625609,2951.9,2951.0,0.99324444]
[1769128263376,0.14531788,2951.7,2950.5,1.0123004]
[1769128263568,0.14531788,2951.7,2950.5,2.00554484]
[1769128263569,0.87063853,2951.6,2950.5,2.00554484]
[1769128263769,1.17753828,2951.5,2950.7,0.99324444]
[1769128263970,0.14531788,2951.7,2950.7,0.99324444]
[1769128264170,1.1775108,2951.6,2950.8,0.99324444]
[1769128264366,1.17752892,2951.5,2950.7,0.99324444]
[1769128264572,0.14531788,2951.7,2950.7,0.99324444]
[1769128264871,1.17774398,2951.6,2950.8,0.99324444]
[1769128265081,1.17774398,2951.5,2950.7,0.99324444]
[1769128265374,0.14531788,2951.7,2950.7,0.99324444]
[1769128265577,1.17821513,2951.6,2950.8,0.99324444]
[1769128265781,1.17821513,2951.5,2950.7,0.99324444]
[1769128266078,0.14531788,2951.7,2950.7,0.99324444]
[1769128266377,1.17826021,2951.6,2950.8,0.99324444]
[1769128266568,1.17826021,2951.5,2950.7,0.99324444]
[1769128266770,0.14531788,2951.7,2950.9,0.99324444]
[1769128266976,1.17832121,2951.6,2950.7,0.99324444]
[1769128267179,1.17832121,2951.5,2950.7,0.99324444]
[1769128267382,1.17837131,2951.4,2950.8,0.99324444]
[1769128267573,0.14531788,2951.7,2950.7,0.99324444]
[1769128267773,1.17850792,2951.6,2950.7,0.99324444]
[1769128267977,1.17850792,2951.5,2950.9,0.99324444]
[1769128268179,1.17850792,2951.4,2950.7,0.99324444]
[1769128268369,0.14531788,2951.7,2950.7,0.99324444]
[1769128268570,1.17872785,2951.6,2950.8,0.99324444]
[1769128268775,1.17872785,2951.5,2950.7,0.99324444]
[1769128269075,1.17872785,2951.4,2950.7,0.99324444]
[1769128269377,0.14531788,2951.7,2950.8,0.99324444]
[1769128269576,1.17832775,2951.6,2950.7,0.99324444]
[1769128269775,1.17832775,2951.5,2950.7,0.99324444]
[1769128270076,1.17832775,2951.4,2950.8,0.99324444]
[1769128270277,0.14531788,2951.7,2950.7,0.99324444]
[1769128270477,1.17863274,2951.6,2950.7,0.99324444]
[1769128270677,1.17863274,2951.5,2950.8,0.99324444]
[1769128270879,1.17863274,2951.4,2950.7,0.99324444]
[1769128271076,0.14531788,2951.7,2950.7,0.99324444]
[1769128271277,1.17863214,2951.6,2950.8,0.99324444]
[1769128271487,1.17863214,2951.5,2950.7,0.99324444]
[1769128271784,1.17863214,2951.4,2950.7,0.99324444]
[1769128272088,0.87132203,2951.3,2950.8,0.99324444]
[1769128272380,0.87132203,2951.3,2950.4,0.00309382]
[1769128272381,0.87132203,2951.2,2950.6,0.99324444]
[1769128272585,0.87132203,2951.1,2950.4,0.00309382]
[1769128272784,0.87132203,2951.0,2950.6,0.99324444]
[1769128272986,0.14441777,2951.6,2950.7,0.99324444]
[1769128273291,1.17867768,2951.5,2950.7,0.99324444]
[1769128273490,1.17867768,2951.4,2950.9,0.99324444]
[1769128273689,0.87133389,2951.3,2950.7,0.99324444]
[1769128273889,0.87133389,2951.2,2950.7,0.99324444]
[1769128274186,0.87133389,2951.1,2950.9,0.99324444]
[1769128274389,0.87133389,2951.0,2950.7,0.99324444]
[1769128274584,0.14441777,2951.6,2950.9,0.99324444]
[1769128274785,1.1786975,2951.5,2950.7,0.99324444]
[1769128274990,1.1786975,2951.4,2950.7,0.99324444]
[1769128275291,0.87134865,2951.3,2950.9,0.99324444]
[1769128275490,0.87134865,2951.2,2950.7,0.99324444]
[1769128275687,0.87134865,2951.1,2950.5,0.99324444]
[1769128275992,0.87134865,2951.0,2950.5,0.99324444]
[1769128276191,0.87134865,2951.0,2950.4,0.00309382]
[1769128276192,0.14441777,2951.4,2950.9,0.99324444]
[1769128276491,1.17867226,2951.3,2950.6,0.99324444]
[1769128276691,1.17867226,2951.2,2950.6,0.99324444]
[1769128276892,0.87132733,2951.1,2950.7,0.99324444]
[1769128277195,0.14441777,2951.4,2950.6,0.99324444]
[1769128277196,0.87132733,2951.0,2950.6,0.99324444]